fUSD/lending_fUSD_20251005
["ID","MTS","AMOUNT","RATE_DAILY","PERIOD"]
[389229836,1759623048799,-2068.87,0.00014988,2]
[389229838,1759623048808,-857.27,0.00014988,2]
[389229840,1759623048817,-11198.75,0.00014988,2]
[389229842,1759623048826,-3584.71,0.00014988,2]
[389229844,1759623048838,-500.5968192,0.00014988,2]
[389229846,1759623048847,-500.0,0.00014988,2]
[389229848,1759623048856,-2068.87,0.00014988,2]
[389229850,1759623048866,-857.27,0.00014988,2]
[389229852,1759623048876,-6212.39,0.00014988,2]
[389229854,1759623048886,-11198.75,0.00014988,2]
[389229855,1759623048896,-500.0,0.00014988,2]
[389229857,1759623048904,-600.0,0.00014988,2]
[389229859,1759623048913,-3584.71,0.00014988,2]
[389229861,1759623048922,-857.27,0.00014988,2]
[389229863,1759623048931,-6212.39,0.00014988,2]
[389229865,1759623048940,-958.23,0.00014988,2]
[389229867,1759623048950,-500.0,0.00014988,2]
[389229869,1759623048958,-2068.87,0.00014988,2]
[389229871,1759623048968,-857.27,0.00014988,2]
[389229873,1759623048978,-11198.75,0.00014988,2]
[389229875,1759623048987,-6212.39,0.00014988,2]
[389229876,1759623048996,-500.0,0.00014988,2]
[389229878,1759623049006,-958.23,0.00014988,2]
[389229880,1759623049015,-857.27,0.00014988,2]
[389229882,1759623049024,-6212.39,0.00014988,2]
[389229884,1759623049034,-500.0,0.00014988,2]
[389229886,1759623049043,-958.23,0.00014988,2]
[389229888,1759623049052,-3584.71,0.00014988,2]
[389229890,1759623049061,-857.27,0.00014988,2]
[389229892,1759623049070,-6212.39,0.00014988,2]
[389229894,1759623049079,-3579.38,0.00014988,2]
[389229896,1759623049087,-500.0,0.00014988,2]
[389229898,1759623049096,-857.27,0.00014988,2]
[389229900,1759623049106,-958.23,0.00014988,2]
[389229901,1759623049115,-446.03550407,0.00014988,2]
[389229907,1759623049157,-436.28250311,0.00014988,2]
[389230000,1759623050314,-1333.3050005,0.00014988,2]
[389230022,1759623050512,-1363.75699232,0.00014988,2]
[389230024,1759623050522,-402.41911138,0.00014988,2]
[389230847,1759623320147,1846.0,0.00014988,120]
[389230848,1759623320604,1091.57394323,0.00015262,120]
[389230849,1759623320634,754.42605677,0.00015262,120]
[389230850,1759623320740,1846.0,0.00015536,120]
[389230851,1759623320936,1846.0,0.0001581,120]
[389230852,1759623321159,1846.0,0.00016084,120]
[389230853,1759623321385,1846.0,0.00016358,120]
[389230854,1759623321604,1846.0,0.00016632,120]
[389230855,1759623321857,1846.0,0.00016906,120]
[389230856,1759623322035,1846.0,0.0001718,120]
[389230857,1759623322217,1846.0,0.00017454,120]
[389230858,1759623322411,1846.0,0.00017728,120]
[389230877,1759623655176,-194.23573647,0.00011928,2]
[389230878,1759623657283,-405.76426353,0.00011928,2]
[389230879,1759623657308,-600.0,0.00012447,2]
[389230880,1759623657336,-279.43412128,0.00012967,2]
[389230881,1759623659084,-320.56587872,0.00012967,2]
[389230883,1759623700580,-400.53747508,0.00011259,2]
[389230884,1759623704991,-166.18831619,0.00011259,2]
[389230885,1759623707836,-33.27420873,0.00011259,2]
[389230886,1759623707861,-366.86052775,0.00011438,2]
[389230887,1759623710175,-233.13947225,0.00011438,2]
[389230888,1759623710200,-112.96043351,0.00011616,2]
[389230889,1759623712286,-376.93750544,0.00011616,2]
[389230890,1759623715543,-110.10206105,0.00011616,2]
[389230891,1759623715568,-335.41879296,0.00011795,2]
[389230892,1759623717112,-264.58120704,0.00011795,2]
[389230893,1759623717139,-5.02741653,0.00011974,2]
[389230894,1759623721541,-366.01188624,0.00011974,2]
[389230895,1759623732306,-228.96069723,0.00011974,2]
[389230896,1759623732334,-233.38425863,0.00012153,2]
[389230897,1759623734942,-366.61574137,0.00012153,2]
[389230898,1759623734969,-37.49637639,0.00012331,2]
[389230899,1759623737243,-562.50362361,0.00012331,2]
[389230900,1759623737274,-37.49637639,0.0001251,2]
[389230901,1759623739360,-289.17967169,0.0001251,2]
[389230902,1759623740833,-273.32395192,0.0001251,2]
[389230903,1759623740859,-26.67604808,0.00012689,2]
[389230904,1759623742803,-212.30878654,0.00012689,2]
[389230905,1759623744955,-210.02264993,0.00012689,2]
[389230906,1759623747475,-150.99251545,0.00012689,2]
[389230907,1759623747502,-45.086022,0.00012868,2]
[389230908,1759623750305,-151.0,0.00012868,2]
[389230909,1759623752798,-248.98819879,0.00012868,2]
[389230910,1759623754049,-154.92577921,0.00012868,2]
[389230911,1759623754075,-211.5293164,0.00013046,2]
[389230912,1759623755626,-159.80911785,0.00013046,2]
[389230913,1759623757759,-208.78658897,0.00013046,2]
[389230914,1759623760053,-19.87497678,0.00013046,2]
[389230915,1759623760079,-177.56713366,0.00013224,2]
[389230916,1759623761633,-121.94830043,0.00013224,2]
[389230917,1759623761659,-103.04169957,0.00013224,2]
[389230918,1759623763235,-129.10968496,0.00013224,2]
[389230919,1759623763267,-177.12788452,0.00013224,2]
[389230920,1759623765355,-244.6849225,0.00013224,2]
[389230921,1759623766783,-78.18719298,0.00013224,2]
[389230922,1759623766815,-125.28585289,0.00013224,2]
[389230923,1759623768449,-374.71414711,0.00013224,2]
[389230924,1759623768482,-92.05327418,0.00013224,2]
[389230925,1759623771106,-407.94672582,0.00013224,2]
[389230926,1759623771138,-237.56327418,0.00013224,2]
[389230927,1759623774505,-166.63487968,0.00013224,2]
[389230928,1759623776595,-95.80184614,0.00013224,2]
[389230929,1759623776630,-75.80671656,0.00013224,2]
[389230930,1759623780759,-264.84416803,0.00013224,2]
[389230931,1759623782324,-159.34911541,0.00013224,2]
[389230932,1759623782357,-101.57303913,0.00013224,2]
[389230933,1759623785028,-170.0,0.00013224,2]
[389230934,1759623787128,-159.92,0.00013224,2]
[389230935,1759623789384,-52.39311719,0.00013224,2]
[389230936,1759623789414,-231.08662914,0.00013224,2]
[389230937,1759623791347,-235.15583197,0.00013224,2]
[389230938,1759623793503,-33.75753889,0.00013224,2]
[389230939,1759623793535,-158.73335986,0.00013224,2]
[389230940,1759623796393,-168.0,0.00013224,2]
[389230941,1759623797919,-173.26664014,0.00013224,2]
[389230942,1759623797959,-165.64543011,0.00013224,2]
[389230943,1759623802745,-288.45414841,0.00013224,2]
[389230944,1759623806309,-200.0,0.00013118,2]
[389230945,1759623806342,-45.90042148,0.00013224,2]
[389230946,1759623806374,-189.25541049,0.00013224,2]
[389230947,1759623807808,-204.5239448,0.00013224,2]
[389230948,1759623812651,-328.3914373,0.00013158,2]
[389230949,1759623814813,-313.67195088,0.00013158,2]
[389230950,1759623818701,-216.05537104,0.00013158,2]
[389230951,1759623820868,-161.61878278,0.00013158,2]
[389230952,1759623820900,-57.00614992,0.00013224,2]
[389230953,1759623822562,-49.21449479,0.00013224,2]
[389230954,1759623822595,-226.53095829,0.00013224,2]
[389230955,1759623827857,-273.46904171,0.00013224,2]
[389230956,1759623827893,-350.78752558,0.00013224,2]
[389230957,1759623832686,-149.21247442,0.00013224,2]
[389230958,1759623832717,-91.03330079,0.00013224,2]
[389230959,1759623834273,-215.19800376,0.00013224,2]
[389230960,1759623837154,-193.76869545,0.00013224,2]
[389230961,1759623837184,-277.76964039,0.00013224,2]
[389230962,1759623838632,-164.64923349,0.00013224,2]
[389230963,1759623841194,-57.58112612,0.00013224,2]
[389230964,1759623841231,-275.7839942,0.00013224,2]
[389230965,1759623843144,-254.50133408,0.00013223,2]
[389230966,1759623844945,-45.49866592,0.00013223,2]
[389230967,1759623844971,-150.0,0.00013223,2]
[389230968,1759623845003,-32.42485757,0.00013224,2]
[389230969,1759623846417,-191.79114823,0.00013224,2]
[389230970,1759623846448,-109.65443864,0.00013224,2]
[389230971,1759623850943,-191.035546,0.00013224,2]
[389230972,1759623853053,-191.0,0.00013224,2]
[389230973,1759623854690,-8.31001536,0.00013224,2]
[389230974,1759623854723,-500.0,0.00013224,2]
[389230975,1759623854756,-83.18524178,0.00013224,2]
[389230976,1759623859107,-416.81475822,0.00013224,2]
[389230977,1759623859134,-126.28289887,0.00013224,2]
[389230978,1759623861465,-185.22826006,0.00013224,2]
[389230979,1759623863903,-155.0,0.00013224,2]
[389230980,1759623865225,-33.48884107,0.00013224,2]
[389230981,1759623865253,-250.45578789,0.00013224,2]
[389230982,1759623867413,-157.91545023,0.00013224,2]
[389230983,1759623871504,-91.62876188,0.00013224,2]
[389230984,1759623871531,-318.11249714,0.00013224,2]
[389230985,1759623874945,-155.0,0.00013223,2]
[389230986,1759623877125,-345.0,0.00013223,2]
[389230987,1759623877153,-133.87700658,0.00013223,2]
[389230988,1759623878920,-121.64583625,0.00013223,2]
[389230989,1759623878943,-65.85416375,0.00013225,2]
[389230990,1759623880457,-316.11658585,0.00013225,2]
[389230992,1759623883749,-151.0,0.00013223,2]
[389230993,1759623885375,-106.14215261,0.00013223,2]
[389230994,1759623885398,-112.55109195,0.00013223,2]
[389230995,1759623889285,-399.38878075,0.00013223,2]
[389230996,1759623892660,-15.44742728,0.00013223,2]
[389230997,1759623892688,-223.20584672,0.00013223,2]
[389230998,1759623893933,-276.79415328,0.00013223,2]
[389230999,1759623893960,-120.33771612,0.00013223,2]
[389231000,1759623897110,-291.72640553,0.00013223,2]
[389231001,1759623900717,-87.93587835,0.00013223,2]
[389231002,1759623900744,-385.28640132,0.00013223,2]
[389231003,1759623902757,-298.02555298,0.00013222,2]
[389231005,1759623907165,-238.71442933,0.00013222,2]
[389231007,1759623910594,-218.01764153,0.00013222,2]
[389231008,1759623913750,-165.3874239,0.00013222,2]
[389231009,1759623916160,-250.64544,0.00013222,2]
[389231010,1759623919782,-29.20951226,0.00013222,2]
[389231011,1759623919809,-300.0,0.00013222,2]
[389231012,1759623919838,-28.15573436,0.00013222,2]
[389231013,1759623922824,-267.05104368,0.00013222,2]
[389231015,1759623925654,-4.79322196,0.00013222,2]
[389231016,1759623925677,-245.85220804,0.00013223,2]
[389231017,1759623929093,-167.57754463,0.00013223,2]
[389231018,1759623930682,-316.68198579,0.00013214,2]
[389231019,1759623933284,-288.59271001,0.00013214,2]
[389231020,1759623935965,-272.83625939,0.00013214,2]
[389231021,1759623939366,-121.88904481,0.00013214,2]
[389231022,1759623939391,-70.47058183,0.00013223,2]
[389231023,1759623940935,-176.76173691,0.00013223,2]
[389231024,1759623943693,-206.15394179,0.00013223,2]
[389231025,1759623946314,-224.72469466,0.00013223,2]
[389231026,1759623949406,-252.84592276,0.00013223,2]
[389231027,1759623953177,-399.67163591,0.00013223,2]
[389231028,1759623958490,-197.78661625,0.00013223,2]
[389231029,1759623961803,-191.42843125,0.00013222,2]
[389231030,1759623964274,-283.14175186,0.00013162,2]
[389231031,1759623969104,-198.68404165,0.00013162,2]
[389231032,1759623970778,-300.0,0.00013162,2]
[389231033,1759623975445,-349.62785092,0.00013162,2]
[389231034,1759623978257,-260.37214908,0.00013162,2]
[389231035,1759623981547,-108.17420649,0.00013162,2]
[389231036,1759623981571,-91.82579351,0.00013217,2]
[389231037,1759623985306,-238.17006255,0.00013217,2]
[389231038,1759623988516,-279.22292483,0.00013217,2]
[389231039,1759623990638,-241.0255557,0.00013217,2]
[389231040,1759623992190,-500.0,0.00013216,2]
[389231041,1759623992218,-233.08889101,0.00013216,2]
[389231042,1759623995347,-190.97093945,0.00013216,2]
[389231043,1759623997731,-75.94016954,0.00013216,2]
[389231044,1759623997759,-152.66684308,0.00013216,2]
[389231045,1759623999491,-299.0,0.00013216,2]
[389231046,1759624000767,-48.33315692,0.00013216,2]
[389231047,1759624000795,-488.47845692,0.00013216,2]
[389231051,1759624100766,-177.98272136,0.00013115,2]
[389231052,1759624102917,-17.85207186,0.00013115,2]
[389231059,1759624186472,-268.36,0.00013003,2]
[389231099,1759624232162,-197.44211044,0.00013197,2]
[389231101,1759624232174,-2604.2665578,0.0001321,2]
[389231103,1759624232186,-1200.0,0.00013213,2]
[389231104,1759624232198,-300.0,0.00013213,2]
[389231105,1759624232209,-150.0,0.00013213,2]
[389231106,1759624232220,-500.0,0.00013214,2]
[389231107,1759624232232,-500.0,0.00013214,2]
[389231108,1759624232244,-500.0,0.00013214,2]
[389231109,1759624232254,-500.0,0.00013214,2]
[389231110,1759624232266,-500.0,0.00013214,2]
[389231111,1759624232277,-500.0,0.00013214,2]
[389231112,1759624232288,-500.0,0.00013214,2]
[389231113,1759624232300,-500.0,0.00013214,2]
[389231114,1759624232312,-500.0,0.00013214,2]
[389231115,1759624232322,-500.0,0.00013214,2]
[389231116,1759624232332,-500.0,0.00013214,2]
[389231117,1759624232344,-607.06777252,0.00013214,2]
[389231118,1759624232356,-500.0,0.00013214,2]
[389231119,1759624232368,-1200.0,0.00013215,2]
[389231120,1759624232379,-2000.0,0.00013216,2]
[389231121,1759624232391,-1615.18947281,0.00013217,2]
[389231122,1759624232401,-218.0292504,0.00013225,2]
[389231123,1759624232414,-839.3,0.00013284,2]
[389231124,1759624232425,-600.0,0.00013404,2]
[389231125,1759624232436,-600.0,0.00013487,2]
[389231126,1759624232447,-150.0,0.00013488,2]
[389231127,1759624232459,-600.0,0.00013583,2]
[389231128,1759624232470,-152.0,0.00013636,3]
[389231129,1759624232483,-195.83479321,0.00013691,2]
[389231130,1759624232495,-600.0,0.00013761,2]
[389231131,1759624232506,-337.47,0.00013823,2]
[389231132,1759624232516,-3103.55,0.00013861,2]
[389231133,1759624232527,-472.51,0.00013871,2]
[389231134,1759624232538,-687.99,0.00013896,2]
[389231135,1759624232548,-600.0,0.0001394,2]
[389231136,1759624232558,-200.0,0.00013953,2]
[389231137,1759624232568,-1868.15,0.00013955,2]
[389231138,1759624232578,-205.80351379,0.00013992,2]
[389231139,1759624232589,-151.0,0.00013992,2]
[389231140,1759624232602,-151.0,0.00013992,2]
[389231141,1759624232614,-151.0,0.00013992,2]
[389231142,1759624232624,-151.0,0.00013992,2]
[389231143,1759624232637,-151.0,0.00013992,2]
[389231144,1759624232646,-151.0,0.00013992,2]
[389231145,1759624232656,-151.0,0.00013992,2]
[389231146,1759624232666,-151.0,0.00013992,2]
[389231147,1759624232676,-151.0,0.00013992,2]
[389231148,1759624232687,-151.0,0.00013992,2]
[389231149,1759624232699,-151.0,0.00013992,2]
[389231150,1759624232717,-151.0,0.00013992,2]
[389231151,1759624232729,-151.0,0.00013992,2]
[389231152,1759624232739,-151.0,0.00013992,2]
[389231153,1759624232750,-151.0,0.00013992,2]
[389231154,1759624232759,-600.0,0.00014006,2]
[389231155,1759624232771,-807.41,0.00014041,2]
[389231156,1759624232788,-169.08,0.0001405,2]
[389231157,1759624232798,-200.0,0.000141,5]
[389231158,1759624232814,-600.0,0.00014119,2]
[389231159,1759624232829,-500.0,0.000142,5]
[389231160,1759624232839,-396.93,0.00014219,2]
[389231161,1759624232850,-195.83479321,0.00014266,2]
[389231162,1759624232859,-600.0,0.00014298,2]
[389231163,1759624232870,-800.0,0.000143,5]
[389231164,1759624232880,-255.0,0.00014323,2]
[389231165,1759624232890,-75474.95895389,0.0001436,2]
[389231166,1759624232904,-9820.68156166,0.0001436,2]
[389231167,1759624232917,-433.84399218,0.0001436,2]
[389231168,1759624232959,-9779.08067136,0.0001436,2]
[389231169,1759624233028,-2123.79151702,0.0001436,2]
[389231170,1759624233112,-558.82,0.0001436,2]
[389231171,1759624233125,-745.6569597,0.0001436,2]
[389231172,1759624233138,-1024.13295043,0.0001436,2]
[389231173,1759624233180,-143923.28874506,0.0001436,2]
[389231174,1759624233194,-678.6274506,0.00014366,2]
[389231175,1759624233204,-1000.0,0.000144,5]
[389231176,1759624233216,-678.62745058,0.00014424,2]
[389231177,1759624233227,-807.41,0.00014441,2]
[389231178,1759624233237,-473.38,0.00014441,2]
[389231179,1759624233248,-340.0,0.00014466,2]
[389231180,1759624233259,-600.0,0.00014476,2]
[389231181,1759624233270,-318.88,0.00014478,2]
[389231182,1759624233280,-195.0,0.00014478,2]
[389231183,1759624233290,-1972.70272168,0.00014478,2]
[389231184,1759624233301,-300.0,0.00014478,2]
[389231185,1759624233311,-678.62745058,0.00014482,2]
[389231186,1759624233321,-1680.0,0.00014489,2]
[389231187,1759624233332,-22014.38029773,0.000145,2]
[389231188,1759624233345,-473.32,0.000145,2]
[389231189,1759624233358,-1520.819305,0.000145,2]
[389231190,1759624237622,-15816.37326916,0.000145,2]
[389231191,1759624237661,-1208.24875683,0.000145,2]
[389231192,1759624237672,-1144.0,0.000145,2]
[389231193,1759624237742,-621.10149347,0.000145,2]
[389231194,1759624237753,-539.65,0.000145,2]
[389231195,1759624237772,-1754.13510245,0.000145,2]
[389231196,1759624237814,-276762.66011445,0.000145,2]
[389231197,1759624237826,-1300.0,0.000145,5]
[389231198,1759624237835,-1593.01,0.00014521,2]
[389231200,1759624237844,-600.0,0.00014526,2]
[389231202,1759624237853,-1680.0,0.00014534,2]
[389231204,1759624237862,-2000.0,0.00014537,2]
[389231206,1759624237873,-300.0,0.00014537,2]
[389231208,1759624237882,-678.62745058,0.0001454,2]
[389231210,1759624237892,-213.30021218,0.00014545,2]
[389231212,1759624237901,-333.62595433,0.00014547,2]
[389231214,1759624237910,-472.51,0.00014564,2]
[389231216,1759624237919,-678.62745058,0.00014598,2]
[389231218,1759624237929,-2841.5516602,0.000146,2]
[389231220,1759624237938,-200.0,0.000146,5]
[389231222,1759624237947,-1625.51,0.00014606,2]
[389231224,1759624237956,-322.6107,0.00014606,2]
[389231226,1759624237965,-601.3376128,0.00014606,2]
[389231228,1759624237974,-7965.41053268,0.00014606,2]
[389231230,1759624237984,-160.0,0.00014606,2]
[389231232,1759624237994,-500.0,0.00014606,2]
[389231234,1759624238003,-261.47470451,0.00014606,2]
[389231236,1759624238012,-578.20924308,0.00014606,2]
[389231238,1759624238022,-500.0,0.00014606,2]
[389231240,1759624238031,-500.0,0.00014606,2]
[389231242,1759624238041,-500.0,0.00014606,2]
[389231244,1759624238050,-500.0,0.00014606,2]
[389231246,1759624238059,-500.0,0.00014606,2]
[389231248,1759624238068,-500.0,0.00014606,2]
[389231250,1759624238078,-231.28369723,0.00014606,2]
[389231252,1759624238089,-151.0,0.00014606,2]
[389231254,1759624238098,-500.0,0.00014606,2]
[389231256,1759624238107,-500.0,0.00014606,2]
[389231258,1759624238117,-500.0,0.00014606,2]
[389231260,1759624238126,-500.0,0.00014606,2]
[389231262,1759624238136,-500.0,0.00014606,2]
[389231264,1759624238145,-500.0,0.00014606,2]
[389231266,1759624238155,-500.0,0.00014606,2]
[389231268,1759624238165,-600.0,0.00014655,2]
[389231270,1759624238174,-678.62745058,0.00014656,2]
[389231272,1759624238184,-600.34502643,0.00014661,2]
[389231274,1759624238193,-628.79388401,0.00014699,2]
[389231276,1759624238202,-200.0,0.000147,5]
[389231278,1759624238211,-678.62745058,0.00014714,2]
[389231280,1759624238220,-678.62745058,0.00014772,2]
[389231282,1759624238230,-869.70168724,0.0001479,2]
[389231284,1759624238240,-695.2,0.00014795,2]
[389231286,1759624238250,-987.42,0.00014795,2]
[389231288,1759624238260,-200.0,0.000148,5]
[389231290,1759624238270,-678.62745058,0.0001483,2]
[389231292,1759624238279,-3467.0,0.00014833,2]
[389231294,1759624238288,-600.0,0.00014834,2]
[389231296,1759624238298,-2859.47125,0.0001484,2]
[389231298,1759624238308,-150.19972494,0.00014873,2]
[389231300,1759624238318,-150.19972494,0.00014876,2]
[389231302,1759624238327,-150.19972494,0.00014878,2]
[389231304,1759624238336,-1625.51,0.0001488,2]
[389231306,1759624238346,-150.19972494,0.00014881,2]
[389231308,1759624238355,-150.19972494,0.00014883,2]
[389231310,1759624238364,-3467.0,0.00014884,2]
[389231312,1759624238373,-150.19972494,0.00014886,2]
[389231314,1759624238382,-4040.8042,0.00014888,2]
[389231316,1759624238391,-7002.3963,0.00014888,2]
[389231318,1759624238400,-162.66321057,0.00014888,2]
[389231320,1759624238409,-678.62745058,0.00014888,2]
[389231322,1759624238418,-150.19972494,0.00014888,2]
[389231324,1759624238427,-162.66321057,0.00014896,2]
[389231326,1759624238437,-200.0,0.000149,5]
[389231328,1759624238446,-839.3,0.00014945,2]
[389231330,1759624238455,-500.0,0.00014973,2]
[389231332,1759624238464,-500.0,0.00014973,2]
[389231334,1759624238473,-500.0,0.00014973,2]
[389231336,1759624238482,-604.32702937,0.00014973,2]
[389231338,1759624238492,-4498.38964355,0.00014987,2]
[389231340,1759624238501,-500.0,0.00014987,2]
[389231342,1759624238512,-151.0,0.00014987,2]
[389231344,1759624238521,-151.0,0.00014987,2]
[389231346,1759624238530,-151.0,0.00014987,2]
[389231348,1759624238539,-151.0,0.00014987,2]
[389231350,1759624238548,-151.0,0.00014987,2]
[389231352,1759624238557,-151.0,0.00014987,2]
[389231354,1759624238566,-151.0,0.00014987,2]
[389231356,1759624238575,-151.0,0.00014987,2]
[389231358,1759624238584,-200.718428,0.00014987,2]
[389231360,1759624238593,-151.0,0.00014987,2]
[389231362,1759624238603,-151.0,0.00014987,2]
[389231364,1759624238611,-151.0,0.00014987,2]
[389231366,1759624238620,-151.0,0.00014987,2]
[389231368,1759624238630,-151.0,0.00014987,2]
[389231370,1759624238639,-151.0,0.00014987,2]
[389231372,1759624238648,-151.0,0.00014987,2]
[389231374,1759624238657,-151.0,0.00014987,2]
[389231376,1759624238666,-184.153145,0.00014987,2]
[389231378,1759624238676,-151.0,0.00014987,2]
[389231380,1759624238684,-151.0,0.00014987,2]
[389231382,1759624238693,-184.153145,0.00014987,2]
[389231384,1759624238703,-151.0,0.00014987,2]
[389231386,1759624238712,-151.0,0.00014987,2]
[389231388,1759624238721,-151.0,0.00014987,2]
[389231390,1759624238730,-184.153145,0.00014987,2]
[389231392,1759624238740,-184.153145,0.00014987,2]
[389231394,1759624238749,-151.0,0.00014987,2]
[389231396,1759624238758,-151.0,0.00014987,2]
[389231398,1759624238767,-184.153145,0.00014987,2]
[389231400,1759624238776,-184.153145,0.00014987,2]
[389231401,1759624238786,-184.153145,0.00014987,2]
[389231404,1759624238795,-184.153145,0.00014987,2]
[389231406,1759624238806,-500.0,0.00014987,2]
[389231408,1759624238816,-1571.38,0.00014987,2]
[389231409,1759624238832,-1571.38,0.00014987,2]
[389231410,1759624238841,-1571.38,0.00014987,2]
[389231411,1759624238850,-1571.38,0.00014987,2]
[389231412,1759624238859,-1571.38,0.00014987,2]
[389231413,1759624238870,-1571.38,0.00014987,2]
[389231414,1759624238880,-1571.38,0.00014987,2]
[389231415,1759624238889,-1571.38,0.00014987,2]
[389231416,1759624238899,-1571.38,0.00014987,2]
[389231417,1759624238910,-1571.38,0.00014987,2]
[389231418,1759624238920,-1571.38,0.00014987,2]
[389231419,1759624238929,-1571.38,0.00014987,2]
[389231420,1759624238939,-1571.38,0.00014987,2]
[389231421,1759624238949,-1571.38,0.00014987,2]
[389231422,1759624238958,-1571.38,0.00014987,2]
[389231423,1759624238968,-1571.38,0.00014987,2]
[389231424,1759624238977,-1571.38,0.00014987,2]
[389231425,1759624238988,-1571.38,0.00014987,2]
[389231426,1759624238997,-1571.38,0.00014987,2]
[389231427,1759624239007,-1571.38,0.00014987,2]
[389231428,1759624239016,-1571.38,0.00014987,2]
[389231429,1759624239026,-500.0,0.00014987,2]
[389231430,1759624239036,-1571.38,0.00014987,2]
[389231431,1759624239045,-1571.38,0.00014987,2]
[389231432,1759624239055,-1571.56,0.00014987,2]
[389231433,1759624239064,-500.0,0.00014987,2]
[389231434,1759624239073,-500.0,0.00014987,2]
[389231435,1759624239082,-500.0,0.00014987,2]
[389231436,1759624239092,-500.0,0.00014987,2]
[389231437,1759624239101,-261.81,0.00014987,2]
[389231439,1759624239110,-151.0,0.00014987,2]
[389231441,1759624239119,-151.0,0.00014987,2]
[389231443,1759624239129,-262.19,0.00014987,2]
[389231445,1759624239139,-500.0,0.00014987,2]
[389231447,1759624239149,-500.0,0.00014987,2]
[389231449,1759624239159,-500.0,0.00014987,2]
[389231451,1759624239169,-500.0,0.00014987,2]
[389231453,1759624239179,-500.0,0.00014987,2]
[389231455,1759624239188,-500.0,0.00014987,2]
[389231457,1759624239199,-500.0,0.00014987,2]
[389231459,1759624239208,-500.0,0.00014987,2]
[389231461,1759624239218,-500.0,0.00014987,2]
[389231463,1759624239227,-500.0,0.00014987,2]
[389231465,1759624239238,-500.0,0.00014987,2]
[389231467,1759624239248,-370.519217,0.00014987,2]
[389231507,1759624239552,-500.0,0.00014987,2]
[389231511,1759624239568,-370.519217,0.00014987,2]
[389231515,1759624239578,-500.0,0.00014987,2]
[389231517,1759624239588,-500.0,0.00014987,2]
[389231520,1759624239598,-500.0,0.00014987,2]
[389231523,1759624239608,-500.0,0.00014987,2]
[389231526,1759624239617,-500.0,0.00014987,2]
[389231529,1759624239626,-500.0,0.00014987,2]
[389231530,1759624239635,-370.519217,0.00014987,2]
[389231533,1759624239646,-500.0,0.00014987,2]
[389231536,1759624239656,-500.0,0.00014987,2]
[389231539,1759624239665,-370.519217,0.00014987,2]
[389231542,1759624239676,-500.0,0.00014987,2]
[389231545,1759624239685,-500.0,0.00014987,2]
[389231548,1759624239694,-500.0,0.00014987,2]
[389231551,1759624239704,-500.0,0.00014987,2]
[389231554,1759624239713,-500.0,0.00014987,2]
[389231557,1759624239723,-500.0,0.00014987,2]
[389231560,1759624239733,-500.0,0.00014987,2]
[389231563,1759624239743,-500.0,0.00014987,2]
[389231566,1759624239752,-229.73,0.00014987,2]
[389231569,1759624239761,-370.519217,0.00014987,2]
[389231572,1759624239770,-370.519217,0.00014987,2]
[389231575,1759624239779,-500.0,0.00014987,2]
[389231578,1759624239788,-500.0,0.00014987,2]
[389231581,1759624239798,-370.519217,0.00014987,2]
[389231583,1759624239808,-500.0,0.00014987,2]
[389231586,1759624239817,-370.519217,0.00014987,2]
[389231589,1759624239826,-500.0,0.00014987,2]
[389231592,1759624239839,-500.0,0.00014987,2]
[389231595,1759624239849,-500.0,0.00014987,2]
[389231598,1759624239858,-151.0,0.00014987,2]
[389231601,1759624239867,-151.0,0.00014987,2]